[Event "AI Cup Div-3 2023"]
[Site "Online"]
[Date "2023.09.25"]
[Round "1.2"]
[White "Kobo, Ori"]
[Black "Tomashevsky, Evgeny"]
[Result "0-1"]
[Annotator "TA"]
[ECO "C77"]
[WhiteElo "2551"]
[BlackElo "2694"]
[PlyCount "70"]
[EventDate "2023.09.18"]
[EventType "k.o."]
[EventCountry "NET"]
[SourceTitle "playchess.com"]
[Source "ChessBase"]
[SourceQuality "1"]
[TimeControl "900+3"]

{[%evp 16,70,6,0,27,25,20,0,0,0,0,-39,-49,-56,-53,-49,-57,-56,-55,-55,-56,-56,-49,-47,-53,-56,-58,-48,-49,-54,-58,-127,-122,-121,-120,-134,-130,-145,-94,-91,-92,-97,-87,-228,-228,-226,-219,-330,-324,-364,-358,-1663,-1539,-1347,-1256,-1256,-1136]} 1. e4 {[%emt 0:00:04]} e5 {[%emt 0:00:05]} 2. Nf3 {[%emt 0:00:01]} Nc6 {[%emt 0:00:02]} 3. Bb5 {[%emt 0:00:02][%cal Bf1b5,Bb5a4,Ba4b3][%mdl 32]} a6 {[%emt 0:00:02]} 4. Ba4 {[%emt 0:00:01]} Nf6 {[%emt 0:00:02]} 5. O-O {[%emt 0:00:01]} Be7 {[%emt 0:00:05]} 6. d3 {[%emt 0:00:01]} b5 {[%emt 0:00:06]} 7. Bb3 {[%emt 0:00:02]} d6 {[%emt 0:00:01]} 8. a3 {[%emt 0:00:01][%cal Ba2a3,Ba3a4][%mdl 32]} O-O {[%emt 0:00:02]} 9. Nc3 {[%emt 0:00:02]} h6 {[%emt 0:00:01] C77: Ruy Lopez: 3...a6 4 Ba4 Nf6, unusual lines.} 10. Be3 {[%emt 0:00:04]} Re8 {[%emt 0:00:10]} 11. a4 {[%emt 0:00:17]} b4 {[%emt 0:00:16] The position is equal.} 12. Nd5 {[%emt 0:00:03]} Na5 {[%emt 0:00:06] [#]} 13. Nxb4 $146 {[%emt 0:03:22]} ({Predecessor:} 13. Ba2 Rb8 14. h3 Nxd5 15. Bxd5 c6 16. Ba2 b3 17. Bxb3 Nxb3 18. cxb3 c5 19. Nd2 {0-1 Vokhidov,S (2552)-Tomashevsky,E (2702) Abu Dhabi Masters 28th 2022 (2)}) 13... Rb8 $1 {[%emt 0:00:06]} 14. Nd5 {[%emt 0:00:51]} Nxb3 {[%emt 0:00:13]} 15. Nxe7+ {[%emt 0:00:39]} Qxe7 {[%emt 0:00:05]} 16. cxb3 {[%emt 0:00:00]} Bg4 {[%emt 0:00:24]} 17. Rc1 {[%emt 0:01:36]} c5 {[%emt 0:00:57][%mdl 1024] Black has compensation.} 18. Rc3 {[%emt 0:00:07]} Qe6 {[%emt 0:00:16]} 19. h3 {[%emt 0:00:30]} Bh5 {[%emt 0:00:08]} 20. Kh2 {[%emt 0:00:15]} Rb7 {[%emt 0:00:25]} 21. Rg1 {[%emt 0:00:07]} Bxf3 {[%emt 0:00:07]} 22. Qxf3 {[%emt 0:01:10]} Reb8 {[%emt 0:00:45]} 23. g4 {[%emt 0:00:09]} ({Better is} 23. Bd2 $15) 23... Rxb3 $17 {[%emt 0:01:47]} 24. g5 {[%emt 0:00:26]} hxg5 {[%emt 0:00:02]} 25. Bxg5 {[%emt 0:00:01]} Ne8 {[%emt 0:00:48] Black is more active.} 26. Bc1 {[%emt 0:00:37]} Rxc3 {[%emt 0:02:08]} (26... R3b4 $142 27. a5 Ra4) 27. bxc3 {[%emt 0:00:00]} c4 {[%emt 0:00:01]} 28. d4 {[%emt 0:00:21]} Qf6 {[%emt 0:00:18]} 29. Qg3 {[%emt 0:02:07] Now White is beyond hope.} (29. Qe3 $17 {is a better defense.}) 29... exd4 $19 {[%emt 0:00:19]} 30. Bg5 {[%emt 0:00:51]} Qe5 {[%emt 0:00:18]} 31. Bf4 {[%emt 0:00:01]} (31. cxd4 $142 Qxe4 32. Qg4 Qxg4 33. hxg4) 31... Qxe4 {[%emt 0:00:03]} 32. Bh6 {[%emt 0:00:33][%cal Rh6g7]} Rb1 {[%emt 0:01:51]} 33. Rg2 {[%emt 0:01:09]} (33. Rxb1 Qxb1 34. cxd4) 33... Qe1 {[%emt 0:00:35][%csl Gb1][%cal Re1h1] [#] Black is clearly winning.} 34. Qf3 {[%emt 0:00:55]} Qh1+ {[%emt 0:00:10]} ({Worse is} 34... Qxc3 35. Qa8 Qe1 36. Rxg7+ Kh8 37. Rg4 Qxf2+ 38. Rg2 $11) 35. Kg3 {[%emt 0:00:01]} Rg1 {[%emt 0:00:02] Weighted Error Value: White=0.41/Black=0.05 (flawless)} 0-1

[Event "AI Cup Div-3 2023"]
[Site "Online"]
[Date "2023.09.25"]
[Round "1.2"]
[White "Muradli, Mahammad"]
[Black "Le, Tuan Minh"]
[Result "1/2-1/2"]
[Annotator "ChessBase"]
[ECO "D14"]
[WhiteElo "2550"]
[BlackElo "2559"]
[PlyCount "37"]
[EventDate "2023.09.18"]
[EventType "k.o."]
[EventCountry "NET"]
[SourceTitle "playchess.com"]
[Source "ChessBase"]
[SourceQuality "1"]
[TimeControl "900+3"]

1. d4 {[%emt 0:00:12]} d5 {[%emt 0:00:06]} 2. c4 {[%emt 0:00:02]} c6 {[%emt 0:00:00]} 3. cxd5 {[%emt 0:00:11]} cxd5 {[%emt 0:00:01]} 4. Nc3 {[%emt 0:00:01]} Nf6 {[%emt 0:00:02]} 5. Bf4 {[%emt 0:00:00]} Nc6 {[%emt 0:00:01]} 6. e3 {[%emt 0:00:01]} Bf5 {[%emt 0:00:01]} 7. Bd3 {[%emt 0:01:08]} Bxd3 {[%emt 0:00:03]} 8. Qxd3 {[%emt 0:00:00]} e6 {[%emt 0:00:00]} 9. Nf3 {[%emt 0:00:15]} Bb4 {[%emt 0:00:02]} 10. O-O {[%emt 0:00:15]} Bxc3 {[%emt 0:00:01]} 11. Qxc3 {[%emt 0:00:38]} O-O {[%emt 0:00:00]} 12. Rfc1 {[%emt 0:00:26]} Rc8 {[%emt 0:00:02]} 13. Bg5 {[%emt 0:02:10]} h6 {[%emt 0:00:16]} 14. Bxf6 {[%emt 0:00:07]} Qxf6 {[%emt 0:00:00]} 15. Qb3 {[%emt 0:00:05]} Qe7 {[%emt 0:00:05]} 16. Rc5 {[%emt 0:01:15]} b6 {[%emt 0:00:06]} 17. Rc3 {[%emt 0:00:04]} Na5 {[%emt 0:00:00]} 18. Qc2 {[%emt 0:00:00]} Rxc3 {[%emt 0:00:05]} 19. Qxc3 {[%emt 0:00:00]} 1/2-1/2

[Event "AI Cup Div-3 2023"]
[Site "Online"]
[Date "2023.09.25"]
[Round "1.3"]
[White "Radjabov, Teimour"]
[Black "Paravyan, David"]
[Result "1/2-1/2"]
[Annotator "TA"]
[ECO "D35"]
[WhiteElo "2745"]
[BlackElo "2599"]
[PlyCount "172"]
[EventDate "2023.09.18"]
[EventType "k.o."]
[EventCountry "NET"]
[SourceTitle "playchess.com"]
[Source "ChessBase"]
[SourceQuality "1"]
[TimeControl "900+3"]

{[%evp 9,172,0,0,0,0,-13,0,-25,0,-5,0,5,29,18,24,11,16,3,16,15,10,2,8,0,16,0,0,0,0,7,16,16,17,0,27,-17,-12,-20,1,0,58,43,95,97,85,101,108,108,108,108,102,106,263,274,255,262,252,255,251,262,363,354,432,435,410,397,459,392,685,676,777,689,842,798,1568,1534,1370,841,29969,29970,29971,29973,29975,29975,29976,29977,29977,29978,29978,29977,29978,29978,29978,29979,29979,29980,29986,29982,29982,29983,29982,29983,29984,29984,29988,29982,29983,29984,29989,29990,29990,29988,29988,29981,29981,29981,29981,29981,29981,29982,29982,29983,29985,29986,29986,29985,29985,29982,29982,29983,29983,29982,29982,29983,29984,29985,29985,29986,29987,29982,29982,29983,29985,29986,29986,0,29991,29989,29989,29990,29990,29989,29992,29993,29994,29993,29993,29992,29993,29994,29996,29997,29997,29998,29998]} 1. d4 {[%emt 0:00:14]} d5 {[%emt 0:05:14]} 2. c4 {[%emt 0:00:05]} e6 {[%emt 0:00:03]} 3. Nc3 {[%emt 0:00:11]} Nf6 {[%emt 0:00:05]} 4. cxd5 {[%emt 0:00:04]} Nxd5 {[%emt 0:00:03]} 5. Bd2 {[%emt 0:00:10]} c5 {[%emt 0:00:08]} 6. dxc5 {[%emt 0:00:04] D35: Queen's Gambit Declined: Exchange Variation.} Bxc5 {[%emt 0:00:06]} 7. e3 {[%emt 0:00:03] [#]} O-O $146 {[%emt 0:00:05]} ({Predecessor:} 7... Nc6 8. Nf3 a6 9. Bc4 O-O 10. O-O Bd6 11. h3 b5 12. Bxd5 exd5 13. Nxd5 Ne5 14. Nxe5 Bxe5 {1-0 Ahmadi,A (1851)-Ghorishi,S IRI-ch U18 Chess.com INT 2021 (3)}) 8. Nf3 {[%emt 0:00:04] The position is equal.} Nc6 {[%emt 0:00:07]} 9. a3 {[%emt 0:00:11]} Be7 {[%emt 0:00:07]} 10. Qc2 {[%emt 0:00:06]} Nxc3 {[%emt 0:00:11]} 11. Bxc3 {[%emt 0:00:05]} Bf6 {[%emt 0:00:03]} 12. Bxf6 {[%emt 0:00:41]} Qxf6 {[%emt 0:00:05]} 13. Bd3 {[%emt 0:00:03]} h6 {[%emt 0:00:16]} 14. O-O {[%emt 0:00:30]} Bd7 {[%emt 0:00:04]} 15. Rfd1 {[%emt 0:00:35]} Rfd8 {[%emt 0:00:05]} 16. Be4 {[%emt 0:00:10]} Be8 {[%emt 0:00:05]} 17. b4 {[%emt 0:00:04]} Rac8 {[%emt 0:00:07][%cal Oc6d4]} 18. Qb3 {[%emt 0:00:26]} b6 {[%emt 0:00:22]} 19. h3 {[%emt 0:00:13]} g6 {[%emt 0:00:38]} 20. Rac1 {[%emt 0:00:18]} Rxd1+ {[%emt 0:00:47]} 21. Rxd1 {[%emt 0:00:23]} Kg7 {[%emt 0:00:04]} 22. Qc2 {[%emt 0:01:08]} (22. Nd2 $5 {[%cal Rd2c4]}) 22... Ne7 {[%emt 0:00:16]} 23. Qd3 {[%emt 0:00:05]} Bc6 {[%emt 0:00:23]} 24. Bxc6 {[%emt 0:00:15]} Nxc6 {[%emt 0:00:17]} ({Black should try} 24... Rxc6 $11 25. Qd7 Rc2) 25. Qa6 $14 {[%emt 0:01:00]} Rc7 {[%emt 0:00:10]} (25... Rd8 $14 26. Rc1 Rd6) 26. Qc4 $16 {[%emt 0:00:17] And now b5 would win. Black is on the road to losing.} Rc8 {[%emt 0:00:18]} 27. Rd7 {[%emt 0:00:15]} Ne7 {[%emt 0:00:45]} 28. Qd4 $36 {[%emt 0:00:26][%mdl 2048] White is really pushing. White is much more active.} Rc1+ {[%emt 0:01:25]} 29. Kh2 {[%emt 0:00:05]} Nc6 {[%emt 0:00:18]} 30. Qd6 {[%emt 0:01:09]} b5 $2 {[%emt 0:00:07]} (30... a6 $16 {was necessary.}) 31. Rc7 $18 {[%emt 0:02:00]} e5 {[%emt 0:00:09]} 32. Qxf6+ {[%emt 0:00:24]} Kxf6 {[%emt 0:00:03][%mdl 4096] Endgame KRN-KRN} 33. Nd2 {[%emt 0:00:04]} Ke6 {[%emt 0:00:59] [#]} 34. Nb3 $1 {[%emt 0:00:08]} Rc3 {[%emt 0:00:13] Threatens to win with ...Kd6.} 35. Nc5+ {[%emt 0:00:10]} Rxc5 {[%emt 0:00:04]} 36. bxc5 {[%emt 0:00:04] KR-KN} Kd5 {[%emt 0:00:04]} 37. Rxf7 {[%emt 0:01:48]} a5 {[%emt 0:00:04]} 38. f4 {[%emt 0:00:17]} b4 $2 {[%emt 0:00:50]} (38... exf4 39. exf4 (39. Rxf4 b4 $11) 39... b4) 39. axb4 {[%emt 0:00:06]} axb4 {[%emt 0:00:03]} 40. g4 {[%emt 0:00:34][%cal Bg2g4,Bg4f5,Bf5f6,Bf6f7][%mdl 32]} exf4 {[%emt 0:00:17]} 41. exf4 {[%emt 0:00:04] Strongly threatening f5.} Nd4 {[%emt 0:00:29]} 42. f5 {[%emt 0:00:10]} gxf5 {[%emt 0:00:03]} 43. gxf5 {[%emt 0:00:05]} Kxc5 {[%emt 0:00:28]} 44. f6 {[%emt 0:00:07]} Kd6 {[%emt 0:00:05]} 45. Rb7 {[%emt 0:00:05]} Ne6 {[%emt 0:00:14]} 46. f7 {[%emt 0:00:14]} Nf8 {[%emt 0:00:05]} 47. Kg3 {[%emt 0:00:11]} Ke6 {[%emt 0:00:06]} 48. Kg4 {[%emt 0:00:09]} Kf6 {[%emt 0:00:04]} 49. Rxb4 {[%emt 0:00:06]} Kxf7 {[%emt 0:00:04]} 50. Kf5 {[%emt 0:00:04]} Ng6 {[%emt 0:00:07]} 51. Rb7+ {[%emt 0:00:07]} Ne7+ {[%emt 0:00:03]} 52. Ke5 {[%emt 0:00:04]} h5 {[%emt 0:00:03]} 53. h4 {[%emt 0:00:06]} Kf8 {[%emt 0:00:04]} 54. Ke6 {[%emt 0:00:05]} Nc6 {[%emt 0:00:05]} 55. Kf6 {[%emt 0:00:06]} Kg8 {[%emt 0:00:04]} 56. Rc7 {[%emt 0:00:11]} Nd4 {[%emt 0:00:04]} 57. Rc4 {[%emt 0:00:07]} Nf3 {[%emt 0:00:05]} 58. Rf4 {[%emt 0:00:11]} Nh2 {[%emt 0:00:04]} 59. Kg6 {[%emt 0:00:06]} Ng4 {[%emt 0:00:03]} 60. Re4 {[%emt 0:00:06][%cal Re4e8]} Kf8 {[%emt 0:00:04]} 61. Ra4 {[%emt 0:00:05]} ({Not} 61. Kxh5 Nf6+ 62. Kh6 Nxe4 $11) 61... Ne5+ {[%emt 0:00:04]} 62. Kxh5 {[%emt 0:00:06]} Kg7 {[%emt 0:00:03]} 63. Kg5 {[%emt 0:00:04]} Nf7+ {[%emt 0:00:04]} 64. Kg4 {[%emt 0:00:04]} Nh6+ {[%emt 0:00:03]} 65. Kf4 {[%emt 0:00:04]} Nf7 {[%emt 0:00:03]} 66. Ra6 {[%emt 0:00:05]} Nh6 {[%emt 0:00:03]} 67. Re6 {[%emt 0:00:12]} Nf7 {[%emt 0:00:03]} 68. Kg4 {[%emt 0:00:05]} Nh6+ {[%emt 0:00:03]} 69. Kg5 {[%emt 0:00:04]} Nf7+ {[%emt 0:00:03]} 70. Kh5 {[%emt 0:00:04]} Nh8 {[%emt 0:00:03]} 71. Kg4 {[%emt 0:00:04]} Nf7 {[%emt 0:00:03]} 72. h5 {[%emt 0:00:04]} Nh6+ {[%emt 0:00:04]} 73. Kf4 {[%emt 0:00:03]} Nf7 {[%emt 0:00:03]} 74. Re7 {[%emt 0:00:06]} Kf6 {[%emt 0:00:04]} 75. Ra7 {[%emt 0:00:03]} Nh6 {[%emt 0:00:03]} 76. Ra6+ {[%emt 0:00:04]} Kg7 {[%emt 0:00:04]} 77. Ra7+ $2 {[%emt 0:00:05]} (77. Rg6+ {mates} Kh7 78. Ke5 Ng8 79. Ke6 Nh6 80. Kf6 Ng8+ 81. Kg5 Ne7 82. Re6) 77... Nf7 $2 {[%emt 0:00:03][%mdl 8192] [#]} (77... Kf6 $11 78. Ra6+ Kg7 79. Rg6+ Kh7 80. Kg5 Nf7+ 81. Kf5 Nh6+ 82. Kf6 Ng8+ 83. Kg5 Ne7) 78. h6+ $1 {[%emt 0:00:04] White mates.} Kg6 {[%emt 0:00:03] [#]} (78... Kg8 79. h7+) 79. h7 $1 {[%emt 0:00:04]} Nh8 {[%emt 0:00:03]} 80. Kg4 {[%emt 0:00:04]} Kh6 {[%emt 0:00:03]} 81. Kf5 {[%emt 0:00:03]} Ng6 {[%emt 0:00:04]} 82. Kf6 {[%emt 0:00:04]} Nh8 {[%emt 0:00:03]} 83. Rb7 {[%emt 0:00:05]} Ng6 {[%emt 0:00:04]} 84. Rb1 {[%emt 0:00:04]} Kxh7 {[%emt 0:00:03]} 85. Rh1+ {[%emt 0:00:06]} Kg8 {[%emt 0:00:03]} 86. Kxg6 {[%emt 0:00:03]} Kf8 {[%emt 0:00:03][%mdl 32768] Weighted Error Value: White=0.02 (flawless) /Black=0.32. An unexpected result.} 1/2-1/2

[Event "AI Cup Div-3 2023"]
[Site "Online"]
[Date "2023.09.25"]
[Round "1.3"]
[White "Matlakov, Maxim"]
[Black "Xiong, Jeffery"]
[Result "1/2-1/2"]
[Annotator "TA"]
[ECO "A36"]
[WhiteElo "2674"]
[BlackElo "2693"]
[PlyCount "122"]
[EventDate "2023.09.18"]
[EventType "k.o."]
[EventCountry "NET"]
[SourceTitle "playchess.com"]
[Source "ChessBase"]
[SourceQuality "1"]
[TimeControl "900+3"]

{[%evp 10,122,7,16,30,23,26,20,27,4,15,4,0,-1,20,12,14,9,86,23,135,147,131,130,185,176,183,187,183,180,180,172,207,199,226,229,230,222,225,194,215,215,381,224,248,248,248,248,247,247,228,172,160,155,156,145,153,92,98,83,90,20,20,20,20,20,21,0,0,0,0,0,0,0,0,0,0,0,0,0,0,0,0,0,0,0,0,0,0,0,0,0,0,0,0,0,0,0,0,0,0,0,0,0,0,0,0,0,0,0,0,0,0,0,0]} 1. c4 {[%emt 0:00:27]} c5 {[%emt 0:03:39]} 2. g3 {[%emt 0:00:13]} g6 {[%emt 0:00:04]} 3. Bg2 {[%emt 0:00:04]} Bg7 {[%emt 0:00:04]} 4. Nc3 {[%emt 0:00:05]} Nc6 {[%emt 0:00:03]} 5. a3 {[%emt 0:00:04]} d6 {[%emt 0:00:17]} 6. Rb1 {[%emt 0:00:27]} Qd7 {[%emt 0:01:15] A36: Symmetrical English vs ...g6: 4 Bg2 Bg7.} 7. b4 {[%emt 0:00:20]} Bxc3 {[%emt 0:01:07]} 8. dxc3 {[%emt 0:00:03]} Nf6 {[%emt 0:00:19]} 9. Nh3 {[%emt 0:02:23]} O-O {[%emt 0:00:06] [#]} 10. O-O $146 {[%emt 0:00:40]} ({Predecessor:} 10. Nf4 Rb8 11. Nd5 b6 12. Bf4 Nxd5 13. cxd5 Nd8 14. bxc5 {1-0 Isajevsky,A (2403)-Von Buelow,G (2361) Titled Tuesday intern op 25th May blitz 2021 (8)}) 10... Ne5 {[%emt 0:00:18]} 11. Bg5 {[%emt 0:00:42]} Qf5 {[%emt 0:01:52] Wards off Nf4} 12. Bxf6 {[%emt 0:00:35]} (12. Re1 {keeps more tension.} cxb4 13. e4 Qg4 14. Qxg4 Nfxg4 15. Bxe7 bxa3 16. Bxf8 Kxf8 17. Ra1) 12... Qxf6 {[%emt 0:00:06]} 13. Nf4 {[%emt 0:00:05]} Be6 {[%emt 0:01:29]} (13... e6 $1 $11 {keeps the balance.}) 14. Nxe6 {[%emt 0:01:50]} (14. Bxb7 $16 Rab8 15. bxc5) 14... fxe6 {[%emt 0:00:06]} (14... Qxe6 $11 15. bxc5 (15. Bxb7 Rab8 $14) 15... dxc5) 15. bxc5 $16 {[%emt 0:00:07]} dxc5 {[%emt 0:00:09][%cal Oa8d8]} 16. Rxb7 {[%emt 0:00:10]} Rad8 {[%emt 0:00:14]} (16... Nxc4 $16 17. Qd7 Nb6) 17. Qa4 $18 {[%emt 0:00:37]} Rd2 {[%emt 0:00:09]} 18. Qxa7 {[%emt 0:00:09]} ({Much less strong is} 18. Rxa7 $6 Rxe2 19. f4 Ng4 $16) 18... Nxc4 {[%emt 0:01:50]} 19. Qxc5 {[%emt 0:02:20]} ({Don't play} 19. Rxe7 $6 Rxe2 $16) 19... Nd6 {[%emt 0:00:05]} 20. Qe3 {[%emt 0:00:14]} Ra2 {[%emt 0:00:13] [#]} 21. Bh3 $1 {[%emt 0:01:01]} Kh8 {[%emt 0:01:01]} (21... Nf5 22. Bxf5) 22. Bxe6 {[%emt 0:00:42]} Rxa3 {[%emt 0:00:05]} 23. Rb3 {[%emt 0:00:20]} Ra5 {[%emt 0:00:04][%cal Ba3a5,Ba5e5,Be5e4,Be4g4][%mdl 32] ...Re5 would be deadly.} 24. Bh3 {[%emt 0:00:17]} Re5 {[%emt 0:00:05]} 25. Qd3 {[%emt 0:00:06]} Ne4 $2 {[%emt 0:00:05]} (25... Rh5) 26. Qd4 {[%emt 0:00:21]} (26. f4 $142 Rh5 27. Qxe4 Rxh3 28. Rb7) 26... Ng5 {[%emt 0:00:11]} 27. Bg4 {[%emt 0:00:24]} Re4 {[%emt 0:00:13]} 28. Qxf6+ {[%emt 0:00:06]} exf6 {[%emt 0:00:03]} 29. f4 {[%emt 0:00:10]} f5 {[%emt 0:00:04]} 30. fxg5 {[%emt 0:00:20]} Rxg4 {[%emt 0:00:03][%mdl 4096] Endgame KRR-KRR} 31. Rf4 {[%emt 0:00:05]} Rxg5 {[%emt 0:00:04]} 32. Rb7 {[%emt 0:00:07]} Rc8 {[%emt 0:00:05]} 33. c4 {[%emt 0:00:14]} (33. Rd4 $142) 33... h5 {[%emt 0:00:04]} 34. Kf2 {[%emt 0:00:06] Strongly threatening h3. White is more active.} Rg4 {[%emt 0:00:04] [#]} 35. Rxg4 {[%emt 0:00:04]} (35. Rb4 $1 $16) 35... hxg4 $16 {[%emt 0:00:04] KR-KR. The position is equal.} 36. Rb4 {[%emt 0:00:04][%cal Oe2e4]} Kg7 {[%emt 0:00:04]} 37. Ke3 {[%emt 0:00:04]} Kf6 {[%emt 0:00:04]} 38. Kd4 {[%emt 0:00:03]} Rd8+ {[%emt 0:00:04]} 39. Kc5 {[%emt 0:00:04]} Ke5 {[%emt 0:00:03]} 40. Rb5 {[%emt 0:00:06]} Rc8+ {[%emt 0:00:04]} 41. Kb4+ {[%emt 0:00:04]} Kd4 {[%emt 0:00:05]} 42. Rd5+ {[%emt 0:00:05]} Ke3 {[%emt 0:00:04]} 43. Rd6 {[%emt 0:00:04]} Rh8 {[%emt 0:00:19]} 44. c5 {[%emt 0:00:06][%cal Bc4c5,Bc5c6,Bc6c7][%mdl 32] c6 is the strong threat.} Rxh2 {[%emt 0:00:03]} 45. c6 {[%emt 0:00:04]} Rh8 {[%emt 0:00:05]} 46. Rxg6 {[%emt 0:00:08] aiming for Rf6.} Kxe2 {[%emt 0:00:04]} 47. c7 {[%emt 0:00:09]} Rc8 {[%emt 0:00:08]} 48. Rc6 {[%emt 0:00:03]} Kf3 {[%emt 0:00:04]} (48... Kf2 $5 49. Rc3 $8 f4 50. gxf4 g3 $11) 49. Rc3+ {[%emt 0:00:04]} Kg2 {[%emt 0:00:03]} 50. Kb5 {[%emt 0:00:08]} Rxc7 {[%emt 0:00:04][%mdl 64] Deflection} 51. Rxc7 {[%emt 0:00:04]} Kxg3 $11 {[%emt 0:00:04] KR-KPP} 52. Kc4 {[%emt 0:00:04] White threatens Rf7 and mate.} Kf2 {[%emt 0:00:12]} 53. Kd3 {[%emt 0:00:03] Rc2+ would kill now.} g3 {[%emt 0:00:04]} 54. Rc2+ {[%emt 0:00:04]} Kf3 {[%emt 0:00:07] Threatens to win with ...g2.} 55. Rc5 {[%emt 0:00:06]} ({Don't blunder} 55. Rc1 $2 g2 56. Ra1 f4 $19) 55... g2 {[%emt 0:00:10]} 56. Rxf5+ {[%emt 0:00:04] KR-KP} Kg3 {[%emt 0:00:04]} 57. Rg5+ {[%emt 0:00:04]} Kf2 {[%emt 0:00:03]} 58. Rf5+ {[%emt 0:00:04]} Kg3 {[%emt 0:00:04]} 59. Ke2 {[%emt 0:00:03] Threatening mate with Rg5+.} g1=Q {[%emt 0:00:04]} 60. Rg5+ {[%emt 0:00:04]} Kh2 {[%emt 0:00:04]} 61. Rxg1 {[%emt 0:00:03]} Kxg1 {[%emt 0:00:03] Blacks defense is rewarded with a draw.   Weighted Error Value: White=0.11 (very precise) /Black=0.13 (very precise)} 1/2-1/2

[Event "AI Cup Div-3 2023"]
[Site "Online"]
[Date "2023.09.25"]
[Round "1.3"]
[White "Malakhov, Vladimir"]
[Black "Kovalev, Vladislav"]
[Result "1-0"]
[Annotator "ChessBase"]
[ECO "A14"]
[WhiteElo "2646"]
[BlackElo "2582"]
[PlyCount "125"]
[EventDate "2023.09.18"]
[EventType "k.o."]
[EventCountry "NET"]
[SourceTitle "playchess.com"]
[Source "ChessBase"]
[SourceQuality "1"]
[TimeControl "900+3"]

1. Nf3 {[%emt 0:00:06]} Nf6 {[%emt 0:06:27]} 2. g3 {[%emt 0:00:06]} d5 {[%emt 0:00:03]} 3. Bg2 {[%emt 0:00:05]} b6 {[%emt 0:00:04]} 4. c4 {[%emt 0:00:06]} e6 {[%emt 0:00:04]} 5. O-O {[%emt 0:00:04]} Bb7 {[%emt 0:00:04]} 6. b3 {[%emt 0:00:08]} dxc4 {[%emt 0:00:07]} 7. bxc4 {[%emt 0:00:05]} c5 {[%emt 0:00:03]} 8. Bb2 {[%emt 0:00:07]} Be7 {[%emt 0:00:04]} 9. Nc3 {[%emt 0:00:10]} O-O {[%emt 0:00:06]} 10. e3 {[%emt 0:00:06]} Nc6 {[%emt 0:00:04]} 11. Qe2 {[%emt 0:00:07]} a6 {[%emt 0:00:31]} 12. Ne1 {[%emt 0:00:28]} Qc7 {[%emt 0:00:05]} 13. f4 {[%emt 0:00:10]} Rfd8 {[%emt 0:00:04]} 14. Rd1 {[%emt 0:00:17]} Rab8 {[%emt 0:00:06]} 15. g4 {[%emt 0:01:42]} Na7 {[%emt 0:00:05]} 16. g5 {[%emt 0:00:06]} Ne8 {[%emt 0:00:05]} 17. Ne4 {[%emt 0:00:47]} Bxe4 {[%emt 0:00:11]} 18. Bxe4 {[%emt 0:00:06]} b5 {[%emt 0:00:04]} 19. Rf3 {[%emt 0:01:19]} g6 {[%emt 0:00:45]} 20. Rh3 {[%emt 0:00:25]} bxc4 {[%emt 0:00:25]} 21. Ba1 {[%emt 0:00:14]} f5 {[%emt 0:00:54]} 22. Qxc4 {[%emt 0:01:28]} Ng7 {[%emt 0:01:16]} 23. Bg2 {[%emt 0:00:12]} Qb6 {[%emt 0:00:53]} 24. Nd3 {[%emt 0:00:54]} Bf8 {[%emt 0:00:35]} 25. Ne5 {[%emt 0:00:23]} Rd6 {[%emt 0:00:17]} 26. Qc2 {[%emt 0:01:37]} Rdd8 {[%emt 0:00:09]} 27. Rf3 {[%emt 0:00:29]} Nc6 {[%emt 0:00:08]} 28. Rff1 {[%emt 0:00:05]} Nxe5 {[%emt 0:00:06]} 29. Bxe5 {[%emt 0:00:04]} Bd6 {[%emt 0:00:10]} 30. Ba1 {[%emt 0:00:22]} Bf8 {[%emt 0:00:14]} 31. Rb1 {[%emt 0:00:17]} Qc7 {[%emt 0:00:06]} 32. Rxb8 {[%emt 0:00:21]} Rxb8 {[%emt 0:00:03]} 33. Rb1 {[%emt 0:00:04]} Ne8 {[%emt 0:00:13]} 34. Bf1 {[%emt 0:00:10]} Rxb1 {[%emt 0:00:14]} 35. Qxb1 {[%emt 0:00:04]} c4 {[%emt 0:00:04]} 36. Qc2 {[%emt 0:00:15]} Nd6 {[%emt 0:00:05]} 37. Be5 {[%emt 0:00:04]} Kf7 {[%emt 0:00:34]} 38. Qc3 {[%emt 0:00:27]} Be7 {[%emt 0:00:30]} 39. d4 {[%emt 0:00:14]} Qb6 {[%emt 0:00:16]} 40. Bxd6 {[%emt 0:00:06]} Bxd6 {[%emt 0:00:03]} 41. Bxc4 {[%emt 0:00:11]} Qb1+ {[%emt 0:00:04]} 42. Kg2 {[%emt 0:00:13]} Bb4 {[%emt 0:00:06]} 43. Qd3 {[%emt 0:00:17]} Qxd3 {[%emt 0:00:04]} 44. Bxd3 {[%emt 0:00:04]} a5 {[%emt 0:00:03]} 45. Bc2 {[%emt 0:00:05]} Bd2 {[%emt 0:00:05]} 46. Kf2 {[%emt 0:00:05]} Bc1 {[%emt 0:00:03]} 47. Bb3 {[%emt 0:00:04]} Ke7 {[%emt 0:00:04]} 48. h4 {[%emt 0:00:05]} Kd6 {[%emt 0:00:03]} 49. Bd1 {[%emt 0:00:05]} Ke7 {[%emt 0:00:04]} 50. h5 {[%emt 0:00:04]} gxh5 {[%emt 0:00:03]} 51. Bxh5 {[%emt 0:00:05]} Bd2 {[%emt 0:00:04]} 52. Bd1 {[%emt 0:00:04]} Bc1 {[%emt 0:00:04]} 53. Bb3 {[%emt 0:00:04]} Kf7 {[%emt 0:00:04]} 54. Ke2 {[%emt 0:00:06]} Ke7 {[%emt 0:00:04]} 55. d5 {[%emt 0:00:07]} exd5 {[%emt 0:00:03]} 56. Bxd5 {[%emt 0:00:04]} Ba3 {[%emt 0:00:05]} 57. Bg8 {[%emt 0:00:04]} h6 {[%emt 0:00:15]} 58. gxh6 {[%emt 0:00:05]} Kf6 {[%emt 0:00:03]} 59. h7 {[%emt 0:00:19]} Kg7 {[%emt 0:00:04]} 60. Be6 {[%emt 0:00:04]} Kxh7 {[%emt 0:00:04]} 61. Bxf5+ {[%emt 0:00:04]} Kg7 {[%emt 0:00:03]} 62. e4 {[%emt 0:00:07]} Kf6 {[%emt 0:00:04]} 63. Kf3 {[%emt 0:00:04]} 1-0